bitfinex-derivatives/quotes_SOLF0:USTF0_20230103
["timestamp","ask_amount","ask_price","bid_price","bid_amount"]
[1672772354525,0.07124134,12.875,12.867,3.84]
[1672772354738,5.07124134,12.875,12.867,3.84]
[1672772355053,3.87,12.872,12.866,0.06531265]
[1672772355468,3.87,12.874,12.866,0.06531265]
[1672772355678,5.07124134,12.875,12.867,3.86]
[1672772356315,0.07124134,12.875,12.868,3.84]
[1672772356840,0.07124134,12.875,12.87,3.87]
[1672772358630,0.07124134,12.875,12.869,3.84]
[1672772359051,3.87,12.885,12.874,3.84]
[1672772359259,5.0,12.884,12.876,3.84]
[1672772359988,3.93870718,12.885,12.875,0.06895656]
[1672772360205,0.06717067,12.885,12.884,3.86]
[1672772360521,0.06375641,12.889,12.884,3.86]
[1672772360835,0.07036886,12.891,12.884,3.86]
[1672772361044,3.91036886,12.891,12.882,3.90697989]
[1672772361250,3.87,12.889,12.882,0.06697989]
[1672772361465,3.87,12.888,12.882,0.06697989]
[1672772362202,3.84,12.889,12.882,0.06697989]
[1672772362517,3.91036886,12.891,12.882,3.93697989]
[1672772362936,3.84,12.889,12.882,0.06697989]
[1672772363671,3.87,12.884,12.882,0.06697989]
[1672772363881,3.87,12.884,12.878,0.06891453]
[1672772364934,0.06767711,12.886,12.881,3.84]
[1672772365144,0.06767711,12.886,12.883,3.84]
[1672772365349,0.06124486,12.889,12.883,3.84]
[1672772366090,3.84,12.888,12.881,0.06776557]
[1672772366512,14.25229574,12.887,12.881,0.06776557]
[1672772366722,5.0,12.886,12.881,0.06776557]
[1672772367561,5.0,12.887,12.881,0.06776557]
[1672772367983,14.25303826,12.886,12.881,0.06776557]
[1672772368406,14.25303826,12.887,12.881,0.06776557]
[1672772368717,0.06124486,12.889,12.886,3.86]
[1672772368932,3.87,12.899,12.888,3.87]
[1672772369139,3.84,12.901,12.893,3.84]
[1672772369349,99.71288057,12.898,12.893,3.84]
[1672772369768,99.71288057,12.9,12.892,7.67]
[1672772369980,99.71288057,12.9,12.895,7.6]
[1672772370400,99.71288057,12.901,12.895,7.6]
[1672772370612,99.71288057,12.901,12.893,7.73831151]
[1672772370929,7.67,12.898,12.893,0.06831151]
[1672772371130,23.14662302,12.89,12.887,7.6]
[1672772371768,14.24469722,12.889,12.882,35.68]
[1672772371975,14.24469722,12.889,12.888,7.61]
[1672772372185,9.722e-05,12.889,12.888,7.61]
[1672772373449,23.00027834,12.89,12.888,7.61]
[1672772373973,85.46773253,12.889,12.888,7.61]
[1672772374391,85.46773253,12.889,12.887,7.66]
[1672772374914,23.00027834,12.89,12.887,7.66]
[1672772375130,23.00027834,12.89,12.885,7.67]
[1672772375339,23.00027834,12.89,12.884,0.06200713]
[1672772375550,23.00027834,12.89,12.885,7.6]
[1672772376068,5.0,12.889,12.885,7.52912913]
[1672772376495,23.00027834,12.89,12.885,7.52912913]
[1672772376707,14.24485039,12.888,12.885,7.52912913]
[1672772376914,14.24485039,12.888,12.887,7.67]
[1672772377126,99.71383875,12.889,12.887,7.67]
[1672772378283,23.00027834,12.89,12.884,0.06200713]
[1672772378284,23.00027834,12.89,12.888,7.6]
[1672772380073,14.24480831,12.889,12.888,7.6]
[1672772381019,23.00027834,12.89,12.888,7.6]
[1672772381331,14.24447321,12.889,12.888,7.6]
[1672772381854,23.00027834,12.89,12.888,7.6]
[1672772382275,14.24440995,12.889,12.888,7.6]
[1672772382799,23.00027834,12.89,12.888,7.6]
[1672772383536,0.06291191,12.893,12.889,5.0]
[1672772383751,0.06291191,12.893,12.892,7.67]
[1672772383963,0.06984923,12.897,12.892,7.67]
[1672772384275,0.06599012,12.899,12.897,7.67]
[1672772384489,14.23539913,12.901,12.897,7.66]
[1672772387009,0.06290772,12.903,12.899,7.61]
[1672772387323,0.06290772,12.903,12.896,7.67722124]
[1672772387533,0.06290772,12.903,12.896,7.61]
[1672772387953,0.06290772,12.903,12.895,0.06245627]
[1672772388161,0.06290772,12.903,12.896,7.67]
[1672772389004,0.06290772,12.903,12.895,7.73245627]
[1672772389217,7.69290772,12.903,12.895,0.06245627]
[1672772389731,99.64849145,12.902,12.895,0.06245627]
[1672772389946,5.0,12.901,12.895,0.06245627]
[1672772390153,7.63,12.9,12.895,0.06245627]
[1672772390365,5.0,12.897,12.895,0.06245627]
[1672772390578,5.0,12.897,12.891,0.06491279]
[1672772390789,0.1873688,12.893,12.889,0.06562697]
[1672772390999,0.1873688,12.893,12.886,0.0698411]
[1672772391202,5.0,12.891,12.885,0.07119686]
[1672772391413,7.63,12.889,12.883,0.06278085]
[1672772391629,7.63,12.889,12.881,0.0606496]
[1672772391835,5.0,12.888,12.881,0.0606496]
[1672772392044,19.23539913,12.888,12.881,0.0606496]
[1672772392465,14.23539913,12.887,12.881,0.0606496]
[1672772392784,5.0,12.886,12.881,0.0606496]
[1672772393412,14.23539913,12.885,12.881,0.0606496]
[1672772394886,5.0,12.886,12.881,0.0606496]
[1672772395097,7.67,12.887,12.881,0.0606496]
[1672772395308,14.25018247,12.885,12.881,0.0606496]
[1672772395727,14.25018247,12.886,12.881,0.0606496]
[1672772395937,14.25018247,12.886,12.881,7.6606496]
[1672772396254,14.25018247,12.888,12.881,7.6606496]
[1672772396460,14.06348523,12.888,12.884,7.67]
[1672772396779,0.07104929,12.89,12.884,7.67]
[1672772397622,0.07104929,12.89,12.887,5.0]
[1672772397833,0.2485937,12.893,12.888,7.67]
[1672772398465,0.2485937,12.893,12.886,7.6]
[1672772398886,0.2485937,12.893,12.885,7.6]
[1672772401824,0.2485937,12.893,12.888,7.61]
[1672772402568,0.2485937,12.893,12.884,0.06958699]
[1672772402569,0.2485937,12.893,12.886,7.61]
[1672772402776,0.2485937,12.893,12.884,7.73958699]
[1672772403084,0.2485937,12.893,12.886,7.67]
[1672772405297,0.2485937,12.893,12.885,15.36]
[1672772406240,0.2485937,12.893,12.884,15.42958699]
[1672772406662,15.5885937,12.893,12.884,0.06958699]
[1672772407188,15.34,12.888,12.884,0.06958699]
[1672772407498,0.2485937,12.893,12.887,65.36]
[1672772407713,0.2485937,12.893,12.891,15.22]
[1672772407926,0.1873688,12.893,12.888,15.36]
[1672772408134,0.1873688,12.893,12.887,0.06487627]
[1672772409922,0.02914781,12.893,12.887,0.06487627]
[1672772410554,20.3684014,12.897,12.887,0.06487627]
[1672772410970,5.0,12.892,12.887,0.06487627]
[1672772411183,42.4424,12.891,12.887,0.06487627]
[1672772411390,5.0,12.89,12.887,0.06487627]
[1672772411605,15.3,12.888,12.876,15.35]
[1672772411811,15.3,12.886,12.874,15.36]
[1672772412023,5.0,12.885,12.874,15.36]
[1672772412449,0.06197693,12.884,12.875,0.06180254]
[1672772412658,0.06197693,12.884,12.876,15.36]
[1672772413074,0.06197693,12.884,12.876,15.16840351]
[1672772413288,0.06197693,12.884,12.878,15.22]
[1672772414866,0.06197693,12.884,12.876,15.36]
[1672772415076,0.06197693,12.884,12.878,15.35]
[1672772415283,0.06197693,12.884,12.876,15.36]
[1672772416232,0.06197693,12.884,12.879,65.35]
[1672772416441,0.06197693,12.884,12.882,15.36]
[1672772416652,0.06876522,12.888,12.882,15.36]
[1672772416864,5.06890821,12.89,12.882,15.36]
[1672772417494,5.06890821,12.89,12.881,15.36]
[1672772417706,15.29,12.889,12.88,0.06984856]
[1672772417911,5.0,12.888,12.88,0.06984856]
[1672772420645,5.0,12.887,12.88,0.06984856]
[1672772424329,15.29,12.886,12.88,0.06984856]
[1672772424641,5.0,12.885,12.88,0.06984856]
[1672772424853,5.0,12.883,12.88,0.06984856]
[1672772425061,5.0,12.883,12.877,0.06306933]
[1672772425272,5.0,12.883,12.875,0.06676836]
[1672772426847,15.3,12.882,12.875,0.06676836]
[1672772427056,5.0,12.881,12.875,0.06676836]
[1672772427268,15.22,12.88,12.875,0.06676836]
[1672772427477,5.0,12.879,12.875,0.06676836]
[1672772427683,4.84541923,12.879,12.875,0.06676836]
[1672772429161,4.84541923,12.879,12.875,6.836e-05]
[1672772429582,15.3,12.878,12.867,15.36]
[1672772429897,5.0,12.877,12.869,50.0]
[1672772430735,5.0,12.877,12.868,0.06274167]
[1672772430947,5.0,12.877,12.869,50.0]
[1672772432524,5.0,12.877,12.868,0.06274167]
[1672772432734,5.0,12.877,12.869,50.0]
[1672772434205,5.0,12.877,12.868,0.06274167]
[1672772434622,5.0,12.877,12.869,50.0]
[1672772434940,57.42630908,12.878,12.869,50.0]
[1672772435889,57.42630908,12.878,12.868,50.06274167]
[1672772438195,15.37090908,12.878,12.868,50.06274167]
[1672772438411,0.07090908,12.878,12.877,50.0]
[1672772438724,0.06072042,12.882,12.877,50.0]
[1672772438936,0.07039488,12.884,12.877,50.0]
[1672772439986,0.07039488,12.884,12.875,15.42732428]
[1672772440929,0.07039488,12.884,12.878,50.0]
[1672772444506,60.9972,12.886,12.884,0.12984963]
[1672772446397,0.0613488,12.89,12.884,0.12984963]
[1672772446602,45.8318,12.889,12.884,0.12984963]
[1672772446921,5.0,12.888,12.884,0.12984963]
[1672772447657,45.8318,12.889,12.884,0.12984963]
[1672772449333,0.0613488,12.89,12.884,0.12984963]
[1672772449547,0.0613488,12.89,12.889,15.35]
[1672772449762,0.06195555,12.894,12.889,15.35]
[1672772449973,0.07031543,12.896,12.891,15.36]
[1672772450183,0.06345695,12.898,12.891,15.36]
[1672772450496,5.06345695,12.898,12.891,15.36]
[1672772450703,0.06345695,12.898,12.891,15.36]
[1672772451968,0.06345695,12.898,12.894,15.36]
[1672772452280,0.06345695,12.898,12.892,15.36]
[1672772453543,0.06345695,12.898,12.89,15.36]
[1672772455330,0.06345695,12.898,12.891,15.22]
[1672772458480,0.06345695,12.898,12.893,15.36]
[1672772458690,45.4259,12.902,12.898,0.00801519]
[1672772460474,0.07492993,12.898,12.895,15.43014972]
[1672772460685,0.07492993,12.898,12.893,15.35]
[1672772460999,0.07492993,12.898,12.894,15.36]
[1672772461527,0.07492993,12.898,12.897,50.0]
[1672772461940,0.07492993,12.898,12.896,15.35]
[1672772462156,0.07492993,12.898,12.897,50.0]
[1672772462789,0.07492993,12.898,12.892,15.36]
[1672772466782,0.07492993,12.898,12.891,0.07093468]
[1672772473295,45.27891652,12.9,12.898,0.15103436]
[1672772473502,45.2123,12.9,12.898,0.15103436]
[1672772473714,5.0,12.899,12.894,0.06139445]
[1672772475708,50.2123,12.9,12.894,0.06139445]
[1672772476239,45.2123,12.9,12.894,0.06139445]
[1672772476453,15.22,12.899,12.894,0.06139445]
[1672772476653,5.0,12.898,12.894,0.06139445]
[1672772477184,20.22,12.899,12.894,0.06139445]
[1672772477396,15.22,12.899,12.894,0.06139445]
[1672772477607,5.0,12.898,12.894,9.445e-05]
[1672772478342,0.21983716,12.894,12.889,15.36]
[1672772480127,0.21983716,12.894,12.89,15.36]
[1672772480551,3.716e-05,12.894,12.893,65.36]
[1672772481710,3.716e-05,12.894,12.893,15.36]
[1672772482024,3.716e-05,12.894,12.893,65.36]
[1672772483071,3.716e-05,12.894,12.893,15.36]
[1672772483284,3.716e-05,12.894,12.891,15.36]
[1672772484331,3.716e-05,12.894,12.89,5.0]
[1672772484652,3.716e-05,12.894,12.887,65.42582068]
[1672772485806,3.716e-05,12.894,12.89,5.0]
[1672772486229,3.716e-05,12.894,12.889,15.22]
[1672772487061,3.716e-05,12.894,12.887,65.42582068]
[1672772487486,3.716e-05,12.894,12.887,50.06582068]
[1672772488956,3.716e-05,12.894,12.887,0.06582068]
[1672772489374,3.716e-05,12.894,12.887,50.06582068]
[1672772491481,3.716e-05,12.894,12.887,0.06582068]
[1672772491694,3.716e-05,12.894,12.887,50.06582068]
[1672772494221,3.716e-05,12.894,12.887,0.06582068]
[1672772494419,3.716e-05,12.894,12.887,50.06582068]
[1672772494635,0.06057782,12.896,12.894,0.10717933]
[1672772494846,15.36,12.897,12.894,0.10717933]
[1672772495473,45.1283,12.898,12.894,0.10717933]
[1672772495789,45.1283,12.898,12.894,7.933e-05]
[1672772495998,20.36,12.897,12.894,7.933e-05]
[1672772496214,5.0,12.896,12.894,7.933e-05]
[1672772497898,20.36,12.897,12.894,7.933e-05]
[1672772498103,15.29,12.895,12.894,7.933e-05]
[1672772504199,58.16,12.896,12.894,7.933e-05]
[1672772504409,5.0,12.895,12.894,7.933e-05]
[1672772504722,20.3,12.895,12.894,7.933e-05]
[1672772506401,78.46,12.895,12.894,7.933e-05]
[1672772508509,20.3,12.895,12.894,7.933e-05]
[1672772509137,20.13021976,12.895,12.894,7.933e-05]
[1672772511759,20.13021976,12.895,12.89,0.06309657]
[1672772511974,15.3,12.891,12.89,0.06309657]
[1672772512185,15.22,12.892,12.886,0.06388707]
[1672772512498,15.22,12.892,12.884,0.06077773]
[1672772512920,42.986,12.891,12.884,0.06077773]
[1672772518485,5.0,12.89,12.884,0.06077773]
[1672772518698,20.34,12.89,12.879,15.36]
[1672772519749,0.06723944,12.889,12.88,0.07063147]
[1672772522691,7.64,12.888,12.88,0.07063147]
[1672772522895,5.0,12.887,12.88,0.07063147]
[1672772525422,7.64,12.888,12.88,0.07063147]
[1672772527315,0.06723944,12.889,12.882,7.61]
[1672772527622,0.06723944,12.889,12.884,7.69]
[1672772529204,0.06723944,12.889,12.882,7.69]
[1672772532773,42.986,12.891,12.889,0.04806732]
[1672772533405,7.64,12.893,12.889,0.04806732]
[1672772533826,53.8666,12.895,12.889,0.04806732]
[1672772534142,46.1866,12.895,12.889,0.04806732]
[1672772535400,0.06063053,12.896,12.889,0.04806732]
[1672772535610,0.06063053,12.896,12.889,7.73806732]
[1672772535814,0.06063053,12.896,12.891,7.68]
[1672772537820,0.06063053,12.896,12.893,7.69]
[1672772538031,0.06509249,12.899,12.893,7.69]
[1672772538345,5.06019224,12.901,12.893,7.69]
[1672772539708,5.06019224,12.901,12.891,7.75322315]
[1672772541283,5.0,12.898,12.891,0.06322315]
[1672772546540,4.81864136,12.898,12.891,0.06322315]
[1672772548747,7.68,12.899,12.891,0.06322315]
[1672772550420,7.67,12.895,12.889,0.04806732]
[1672772550632,5.0,12.894,12.889,0.04806732]
[1672772552318,7.67,12.895,12.889,0.04806732]
[1672772556312,49.7482,12.895,12.889,0.04806732]
[1672772558844,7.67,12.893,12.889,0.04806732]
[1672772559155,5.0,12.892,12.889,0.04806732]
[1672772559358,7.67,12.893,12.889,0.04806732]
[1672772559569,42.0782,12.895,12.889,0.04806732]
[1672772560305,0.0701151,12.896,12.889,0.04806732]
[1672772560521,0.0701151,12.896,12.891,7.69]
[1672772563466,0.0701151,12.896,12.889,7.65806732]
[1672772564721,0.0701151,12.896,12.889,0.04806732]
[1672772565464,12.66,12.898,12.896,0.0408435]
[1672772565672,7.66,12.898,12.896,0.0408435]
[1672772566512,5.0,12.897,12.889,0.11148635]
[1672772567774,5.0,12.897,12.89,7.61]
[1672772568824,5.07115953,12.898,12.89,7.61]
[1672772573453,12.73115953,12.898,12.889,0.11148635]
[1672772573661,7.63,12.894,12.889,0.11148635]
[1672772573870,5.0,12.893,12.889,0.11148635]
[1672772575132,5.0,12.893,12.889,8.635e-05]
[1672772575343,7.66,12.892,12.876,50.0]
[1672772575553,5.0,12.891,12.881,7.62]
[1672772576390,5.06744366,12.891,12.881,7.69084258]
[1672772580606,48.62984366,12.891,12.881,7.69084258]
[1672772583019,7.63,12.89,12.881,0.07084258]
[1672772583232,5.0,12.889,12.881,0.07084258]
[1672772585333,12.66,12.889,12.881,0.07084258]
[1672772587435,70.85,12.889,12.881,0.07084258]
[1672772588379,7.63,12.888,12.881,0.07084258]
[1672772589749,70.6078675,12.889,12.881,0.07084258]
[1672772589949,12.4178675,12.889,12.881,0.07084258]
[1672772594053,58.19,12.888,12.881,0.07084258]
[1672772594263,5.0,12.887,12.881,0.07084258]
[1672772596054,63.2,12.887,12.881,0.07084258]
[1672772596995,5.0,12.887,12.881,0.07084258]
[1672772597733,3.85,12.888,12.881,0.07084258]
[1672772600255,8.81,12.89,12.881,3.92084258]
[1672772600464,3.85,12.888,12.881,0.07084258]
[1672772602560,3.6132886,12.888,12.881,0.07084258]
[1672772612117,3.85,12.884,12.866,50.0]
[1672772612328,3.85,12.883,12.874,3.83]
[1672772612538,8.85,12.883,12.874,3.83]
[1672772613167,8.91472535,12.883,12.874,3.83]
[1672772613382,3.81,12.881,12.874,0.06728948]
[1672772615379,46.177,12.881,12.874,0.06728948]
[1672772616431,0.16875277,12.874,12.872,3.83]
[1672772618951,0.16875277,12.874,12.868,3.91044935]
[1672772619161,0.16875277,12.874,12.868,0.06044935]
[1672772619372,5.0,12.873,12.862,3.83]
[1672772619582,3.85,12.871,12.862,3.83]
[1672772620525,3.92077023,12.871,12.862,3.89800818]
[1672772621472,3.82,12.869,12.862,0.06800818]
[1672772625570,3.85,12.867,12.858,3.81]
[1672772626724,3.91636027,12.867,12.858,3.87866184]
[1672772627984,0.06636027,12.867,12.86,3.83]
[1672772628509,3.91636027,12.867,12.858,3.87866184]
[1672772629567,3.85,12.865,12.858,0.06866184]
[1672772630094,7.65,12.866,12.858,0.06866184]
[1672772630407,5.0,12.865,12.858,0.06866184]
[1672772633983,7.65,12.866,12.858,0.06866184]
[1672772639233,58.19496252,12.865,12.858,0.06866184]
[1672772639441,5.0,12.864,12.858,0.06866184]
[1672772640284,5.0,12.865,12.858,0.06866184]
[1672772640706,7.65,12.866,12.858,0.06866184]
[1672772641435,7.77636027,12.867,12.858,0.06866184]
[1672772641646,0.06636027,12.867,12.86,7.72]
[1672772641865,0.06636027,12.867,12.862,7.67]
[1672772642591,0.06636027,12.867,12.863,7.72]
[1672772642804,0.06636027,12.867,12.865,7.72]
[1672772643122,0.06570276,12.871,12.866,5.0]
[1672772643335,0.06391117,12.873,12.866,7.72]
[1672772643747,0.06391117,12.873,12.867,7.72]
[1672772644172,0.06391117,12.873,12.869,7.72]
[1672772644588,0.06391117,12.873,12.872,7.72]
[1672772644800,0.16875277,12.874,12.872,7.72]
[1672772645646,5.277e-05,12.874,12.872,7.72]
[1672772646384,5.277e-05,12.874,12.873,7.72]
[1672772649535,3.632e-05,12.877,12.874,5.0]
[1672772649743,5.0,12.886,12.876,7.72]
[1672772649949,7.65,12.888,12.878,7.72]
[1672772650168,42.7673,12.891,12.882,7.72]
[1672772650375,5.0,12.89,12.882,7.72]
[1672772652470,0.06598184,12.891,12.882,7.72]
[1672772653845,0.06598184,12.891,12.886,7.67]
[1672772654156,0.06598184,12.891,12.888,7.72]
[1672772654366,0.06858375,12.894,12.888,7.72]
[1672772654780,0.06858375,12.894,12.886,7.72]
[1672772654995,0.06858375,12.894,12.885,0.06815032]
[1672772656047,7.72,12.891,12.885,0.06815032]
[1672772656258,5.0,12.89,12.885,0.06815032]
[1672772657624,7.72,12.891,12.885,0.06815032]
[1672772659093,5.0,12.892,12.885,0.06815032]
[1672772659409,5.0,12.893,12.885,0.06815032]
[1672772659832,5.06858375,12.894,12.885,0.06815032]
[1672772660040,0.06858375,12.894,12.885,0.06815032]
[1672772660665,0.06858375,12.894,12.887,7.72]
[1672772660879,0.06858375,12.894,12.889,7.72]
[1672772661300,0.06858375,12.894,12.892,7.72]
[1672772661512,0.06965701,12.898,12.892,7.72]
[1672772661721,0.07001051,12.9,12.892,7.72]
[1672772662564,43.1618,12.902,12.9,0.08314017]
[1672772662981,43.1618,12.902,12.887,5.0]
[1672772662982,12.65,12.901,12.888,7.72]
[1672772663192,7.65,12.898,12.889,5.0]
[1672772663613,7.71516584,12.898,12.889,0.0644121]
[1672772664876,0.06516584,12.898,12.889,12.7344121]
[1672772665086,0.06516584,12.898,12.891,7.72]
[1672772665821,0.06516584,12.898,12.889,12.7844121]
[1672772666029,0.06516584,12.898,12.889,7.7844121]
[1672772669603,7.65,12.9,12.889,7.7844121]
[1672772669604,7.65,12.913,12.897,7.72]
[1672772669817,7.72,12.909,12.899,7.72]
[1672772670134,7.72,12.909,12.902,5.0]
[1672772670345,7.72,12.909,12.899,7.72]
[1672772670655,7.72,12.909,12.899,7.78878292]
[1672772670870,7.78472969,12.909,12.899,7.78878292]
[1672772671705,7.78472969,12.909,12.901,7.72]
[1672772671706,0.06472969,12.909,12.901,7.72]
[1672772672025,0.06472969,12.909,12.905,7.67]
[1672772672234,0.06472969,12.909,12.902,5.0]
[1672772672235,0.06472969,12.909,12.908,7.72]
[1672772672448,52.3092,12.917,12.909,5.0]
[1672772672656,5.0,12.916,12.907,7.72]
[1672772672971,19.21796251,12.916,12.907,7.72]
[1672772673182,14.21796251,12.916,12.907,7.72]
[1672772673396,14.21796251,12.915,12.907,7.7818104]
[1672772673709,14.27806462,12.916,12.907,7.7818104]
[1672772675176,7.65,12.914,12.907,0.0618104]
[1672772675392,7.71,12.912,12.907,0.0618104]
[1672772675602,7.65,12.91,12.907,0.0618104]
[1672772675812,7.65,12.91,12.904,0.06247897]
[1672772676019,5.0,12.909,12.902,0.06943078]
[1672772676229,7.71,12.908,12.902,0.06943078]
[1672772676546,49.6979,12.908,12.902,0.06943078]
[1672772679387,5.0,12.907,12.902,0.06943078]
[1672772680541,20.44,12.907,12.902,0.06943078]
[1672772680745,15.44,12.907,12.902,0.06943078]
[1672772681589,41.9879,12.908,12.902,0.06943078]
[1672772682637,0.06755401,12.909,12.902,15.43943078]
[1672772685267,0.06755401,12.909,12.902,0.06943078]
[1672772686846,15.48,12.92,12.909,0.23434627]
[1672772687057,50.0,12.918,12.909,0.23434627]
[1672772687365,50.0,12.928,12.917,15.33]
[1672772687577,46.2291,12.927,12.917,15.34]
[1672772687993,46.2291,12.927,12.917,15.40328445]
[1672772687994,14.21046398,12.926,12.917,15.40328445]
[1672772688416,5.0,12.925,12.917,15.40328445]
[1672772688623,14.21046398,12.926,12.917,15.40328445]
[1672772689051,14.21046398,12.924,12.917,15.40328445]
[1672772689262,14.21046398,12.926,12.917,15.40328445]
[1672772689998,14.21046398,12.926,12.922,15.33]
[1672772690204,14.21046398,12.926,12.917,0.06328445]
[1672772690422,44.4629,12.935,12.925,15.34]
[1672772690623,44.4629,12.935,12.926,5.0]
[1672772690944,15.39,12.946,12.934,15.33]
[1672772691155,5.0,12.945,12.934,15.33]
[1672772691470,65.42,12.938,12.935,0.06824147]
[1672772691675,0.06841652,12.935,12.932,0.06318925]
[1672772691886,0.06841652,12.935,12.929,0.06940486]
[1672772692096,0.06841652,12.935,12.927,0.06980414]
[1672772692302,0.06841652,12.935,12.933,15.48]
[1672772693254,0.06841652,12.935,12.934,15.37]
[1672772694305,0.06841652,12.935,12.932,15.37]
[1672772694727,0.06841652,12.935,12.934,15.37]
[1672772696616,0.06841652,12.935,12.934,65.37]
[1672772696932,0.06841652,12.935,12.934,15.37]
[1672772697142,0.06841652,12.935,12.934,65.37]
[1672772697352,0.06501777,12.939,12.935,5.0]
[1672772697557,0.06656922,12.942,12.938,15.33]
[1672772697773,0.06984678,12.945,12.941,15.36]
[1672772697979,14.25941123,12.948,12.941,15.36]
[1672772698193,5.0,12.946,12.941,15.36]
[1672772698405,14.25941123,12.948,12.943,15.36]
[1672772699136,0.06850869,12.948,12.943,15.36]
[1672772699345,0.06850869,12.948,12.947,15.37]
[1672772699556,14.19090254,12.95,12.945,15.36]
[1672772700084,14.19090254,12.95,12.941,0.06469184]
[1672772700715,5.0,12.949,12.941,0.06469184]
[1672772700921,14.19090254,12.95,12.941,0.06469184]
[1672772701130,668.69267287,12.951,12.948,15.36]
[1672772701345,668.69267287,12.951,12.949,5.0]
[1672772702185,668.69267287,12.951,12.945,5.07026343]
[1672772702397,668.69267287,12.951,12.95,15.25]
[1672772702610,668.69267287,12.951,12.948,15.34]
[1672772702818,668.69267287,12.951,12.949,5.0]
[1672772703344,668.69267287,12.951,12.95,15.24]
[1672772705658,668.69267287,12.951,12.944,50.0]
[1672772705863,5.0,12.95,12.945,15.24]
[1672772706079,5.0,12.95,12.94,15.24]
[1672772706811,5.06375102,12.95,12.94,15.30781793]
[1672772707023,0.06375102,12.95,12.942,15.27]
[1672772707230,0.06375102,12.95,12.945,15.24]
[1672772707549,0.06375102,12.95,12.948,15.34]
[1672772707866,0.06429087,12.954,12.948,15.34]
[1672772708066,0.06848685,12.956,12.948,15.34]
[1672772709017,0.06848685,12.956,12.946,0.06526202]
[1672772709643,57.89,12.955,12.946,0.06526202]
[1672772709858,5.0,12.955,12.946,0.06526202]
[1672772710064,14.17659891,12.954,12.946,0.06526202]
[1672772710279,5.0,12.953,12.946,0.06526202]
[1672772711120,14.17659891,12.952,12.946,0.06526202]
[1672772711331,5.0,12.951,12.946,0.06526202]
[1672772711748,14.17659891,12.95,12.946,0.06526202]
[1672772712069,5.0,12.949,12.946,0.06526202]
[1672772712278,5.0,12.947,12.943,0.0613751]
[1672772712488,15.36,12.946,12.94,0.06332019]
[1672772712699,5.0,12.944,12.938,0.06194899]
[1672772712908,5.0,12.944,12.936,0.06970886]
[1672772713112,5.0,12.944,12.935,0.06054312]
[1672772713327,5.07001785,12.944,12.935,0.06054312]
[1672772713643,47.32111785,12.944,12.935,0.06054312]
[1672772714376,47.32111785,12.944,12.925,55.0]
[1672772714377,50.0,12.938,12.928,15.36]
[1672772714692,5.0,12.936,12.923,15.32]
[1672772714899,57.98,12.935,12.923,15.32]
[1672772715115,5.0,12.934,12.923,15.32]
[1672772715531,0.06879891,12.933,12.924,0.06635953]
[1672772717318,58.05879891,12.933,12.924,0.06635953]
[1672772717524,5.0,12.932,12.924,0.06635953]
[1672772718684,50.0,12.928,12.924,0.06635953]
[1672772718898,58.0,12.931,12.924,0.06635953]
[1672772719108,5.0,12.927,12.924,0.06635953]
[1672772719311,5.0,12.927,12.921,0.06363966]
[1672772719524,5.0,12.927,12.919,0.06826266]
[1672772720681,15.36,12.926,12.919,0.06826266]
[1672772720892,5.0,12.925,12.919,0.06826266]
[1672772722259,5.0,12.926,12.919,0.06826266]
[1672772722994,5.0,12.927,12.919,0.06826266]
[1672772723205,0.07004006,12.928,12.921,15.33]
[1672772723414,0.07004006,12.928,12.922,15.24]
[1672772723626,0.07004006,12.928,12.924,15.33]
[1672772724886,4.006e-05,12.928,12.927,15.29]
[1672772725196,5.0,12.944,12.927,15.29]
[1672772725406,19.18781357,12.944,12.929,15.24]
[1672772725932,0.06087645,12.941,12.932,0.06417667]
[1672772728144,0.06087645,12.941,12.937,15.24]